Cogmind - Beta 14 @@@ ROGUE MODE // 2025.03.20 @ 12:36:34 Player: Anting Result: Destroyed by G-34 Mercenary with Small Laser Performance ------------- Evolutions (0) 0 Regions Visited (1) 200 Robots Destroyed (25) 125 Value Destroyed (570) 570 Prototype IDs (2) 40 Alien Tech Used (0) 0 Bonus (0) 0 TOTAL SCORE: 935 Bonus ------- None Cogmind --------- Core Integrity 0/250 Matter 174/300 Energy 98/100 System Corruption 0% Temperature Cool (6) Movement Walking (120) Location -10/Materials Parts ------- > --- POWER (1) -------- (None) > --- PROPULSION (2) --- Aluminum Leg > --- UTILITY (2) ------ Small Storage Unit Seismic Detector > --- WEAPON (2) ------- Assault Rifle Light Assault Rifle > --- INVENTORY (8) ---- Light Nuclear Core Light Treads Light Treads Large Matter Pod (71) Assault Rifle Rocket Launcher Rocket Launcher Datajack Peak State ------------ > --- POWER ------------ Light Ion Engine > --- PROPULSION ------- Aluminum Leg Aluminum Leg > --- UTILITY ---------- Small Storage Unit Seismic Detector > --- WEAPON ----------- Assault Rifle Assault Rifle > --- INVENTORY -------- Light Ion Engine Light Treads Light Treads Medium Laser Assault Rifle Light Cannon Rocket Launcher Rocket Launcher [Rating: 8] Favorites ----------- Power Light Ion Engine Engine Light Ion Engine Propulsion Aluminum Leg Leg Aluminum Leg Utility Small Storage Unit Device Seismic Detector Storage Small Storage Unit Weapon Assault Rifle Ballistic Gun Assault Rifle Ballistic Cannon Light Cannon Build | -11 -10 ------- Run | Yrd Mat Slots Evolved . | . . Power . | . . Propulsion . | . . Utility . | . . Weapon . | . . Parts Attached 12 | 6 6 Power 2 | 1 1 Engine 2 | 1 1 Core . | . . Reactor . | . . Propulsion 2 | 2 . Treads . | . . Leg 2 | 2 . Wheel . | . . Hover . | . . Flight . | . . Utility 3 | 1 2 Device 2 | . 2 Storage 1 | 1 . Processor . | . . Hackware . | . . Protection . | . . Artifact . | . . Weapon 5 | 2 3 Energy Gun . | . . Energy Cannon . | . . Ballistic Gun 4 | 2 2 Ballistic Cannon 1 | . 1 Launcher . | . . Special Weapon . | . . Impact Weapon . | . . Slashing Weapon . | . . Piercing Weapon . | . . Special Melee Weapon . | . . Unidentified Prototypes . | . . Parts Lost 6 | . 6 Power 2 | . 2 Propulsion 1 | . 1 Utility 1 | . 1 Weapon 2 | . 2 Highest Loss Streak 2 | . 2 To Critical Strikes 1 | . 1 Average Slot Usage (%) 89 | . 89 Engine 13 | . 13 Leg 26 | . 26 Device 6 | . 6 Storage 14 | . 14 Ballistic Gun 23 | . 23 Ballistic Cannon 4 | . 4 Peak Build Rating 8 | 6 8 Average Rating 6 | 5 6 On Entrance 3 | . 6 Naked Turns . | . . Heaviest Build 13 | 12 13 Greatest Support 20 | 20 20 Greatest Overweight (x) 1 | . 1 Average Overweight (x) . | . . Largest Inventory Capacity 8 | 8 8 Average Capacity 7 | 7 8 Most Carried 8 | 5 8 Average Carried 6 | 3 6 Final Capacity 8 | 8 8 Final Carried 8 | 5 8 Class Distribution -------------------- 100% | Mutant Dominant Class ---------------- Mutant | -10/Materials Resources | -11 -10 ----------- Run | Yrd Mat Matter Collected 826 | 296 530 Remotely . | . . Salvage Created 729 | 171 558 Parts 46 | 14 32 Haulers Intercepted 1 | . 1 Recyclers Shooed . | . . Parts Field Recycled . | . . Retrieved Matter . | . . Parts Self-Destructed . | . . Prevented . | . . Kills | -11 -10 ------- Run | Yrd Mat Combat Hostiles Destroyed 16 | . 16 Guns 14 | . 14 Cannons 2 | . 2 Classes Destroyed 7 | 2 5 Worker 1 | . 1 Builder 1 | . 1 Tunneler 5 | 4 1 Hauler 1 | . 1 Recycler 1 | 1 . Swarmer 3 | . 3 Grunt 13 | . 13 Best Kill Streak 5 | 5 3 Combat Bots Only 3 | . 3 Max Kills in Single Turn 2 | 2 1 Gunslinging . | . . Exploded . | . . Melee . | . . Uniques/NPCs Destroyed . | . . Combat | -11 -10 -------- Run | Yrd Mat Hostile Shots Fired 107 | . 107 Missed 26 | . 26 Damage Taken 994 | . 994 Core 252 | . 252 Absorbed by Shields . | . . Core Remaining (%) 100 | 100 . Volleys Fired 99 | 6 93 Largest 2 | 2 2 Hottest 55 | 40 55 Shots Fired 198 | 12 186 Gun 161 | 12 149 Cannon 37 | . 37 Launcher . | . . Special . | . . Kinetic 198 | 12 186 Thermal . | . . Explosive . | . . Electromagnetic . | . . Robot Hit Streak 11 | 4 11 Robot Miss Streak 4 | 1 4 Penetration Max . | . . Secondary Targets 1 | . 1 Max Gunslinging Chain 1 | . 1 Shots Hit Robots 134 | 7 127 Core Hits 43 | 5 38 Critical Kills 1 | 1 . Critical Parts Destroyed . | . . Critical Strikes 1 | 1 . Destroy 1 | 1 . Melee Attacks . | . . Impact . | . . Slashing . | . . Piercing . | . . Sneak Attacks . | . . Combat Hostiles . | . . Follow-up Attacks . | . . Damage Inflicted 1836 | 114 1722 Guns 1366 | 102 1264 Cannons 431 | . 431 Explosions . | . . Melee . | . . Ramming 39 | 12 27 Kinetic 1797 | 102 1695 Thermal . | . . Explosive . | . . Electromagnetic . | . . Impact . | . . Slashing . | . . Piercing . | . . Highest Corruption . | . . Average Corruption . | . . Corruption Purged . | . . Corruption Blocked . | . . Overload Shots . | . . Overflow Damage . | . . Projectiles . | . . Explosions . | . . Melee . | . . Knockbacks 10 | . 10 Impact . | . . Kinetic 6 | . 6 Secondary 4 | . 4 Self-Inflicted Damage . | . . Shots . | . . Rammed . | . . Targets Rammed 6 | 2 4 Kicked 6 | 2 4 Crushed . | . . Highest Temperature 66 | . 66 Average Temperature 24 | . 24 Received Heat Transfer 561 | . 561 Siege Activations . | . . Robots Corrupted . | . . Combat Hostiles . | . . Parts Fried . | . . Impact Corruptions . | . . Robots Melted . | . . Combat Hostiles . | . . Parts Melted . | . . Heat Transferred . | . . Parts Sabotaged . | . . Parts Stolen . | . . Parts Stripped . | . . Power Chain Reactions . | . . Alert | -11 -10 ------- Run | Yrd Mat Peak Influence 175 | 25 175 Initial 16 | . 16 Average 74 | 9 81 Maximum Alert Level . | . . Low Security (%) 100 | 100 100 Level 1 . | . . Level 2 . | . . Level 3 . | . . Level 4 . | . . Level 5 . | . . High Security . | . . Max Security . | . . Squads Dispatched 3 | . 3 Investigation 1 | . 1 Extermination . | . . Reinforcement 2 | . 2 Assault . | . . Garrison . | . . Intercept . | . . Searches Triggered . | . . Construction Impeded . | . . Haulers Reinforced . | . . Active Scanning Responses . | . . Cargo Convoy Interrupts . | . . Stealth | -11 -10 --------- Run | Yrd Mat Distress Signals 1 | . 1 Communications Jammed . | . . Distress Signals . | . . Times Spotted 24 | . 24 Peak Tracking Total 5 | . 5 Tactical Retreats 1 | . 1 Traps | -11 -10 ------- Run | Yrd Mat Traps Triggered 1 | . 1 Indirectly . | . . Trap Hack Attempts . | . . Triggered . | . . Disarmed . | . . Reprogrammed . | . . Reused . | . . Traps Extracted . | . . Installed . | . . Triggered . | . . Machines | -11 -10 ---------- Run | Yrd Mat Machines Disabled 1 | . 1 Max in Single Turn 1 | . 1 Machines Repaired . | . . Machines Dismantled . | . . Machines Sabotaged . | . . Overloaded Fab Kills . | . . Hacking | -11 -10 --------- Run | Yrd Mat Machines Accessed 4 | . 4 Terminals 4 | . 4 Fabricators . | . . Repair Stations . | . . Recycling Units . | . . Scanalyzers . | . . Garrison Access . | . . Total Hacks 9 | . 9 Successful 5 | . 5 Failed 3 | . 3 Catastrophic . | . . Database Lockouts 1 | . 1 Manual 5 | . 5 Terminals 9 | . 9 Fabricators . | . . Repair Stations . | . . Recycling Units . | . . Scanalyzers . | . . Garrison Access . | . . Terminal Hacks 4 | . 4 Robot Analysis 1 | . 1 Prototype ID Bank 1 | . 1 Branch Access Points 1 | . 1 Hauler Manifests 1 | . 1 Fabricator Hacks . | . . Repair Station Hacks . | . . Recycling Unit Hacks . | . . Scanalyzer . | . . Garrison Access Hacks . | . . Unauthorized Hacks 1 | . 1 Terminals 1 | . 1 Botnet 1 | . 1 Fabricators . | . . Repair Stations . | . . Recycling Units . | . . Scanalyzers . | . . Garrison Access . | . . Data Cores Recovered . | . . Used . | . . Hacking Detections 4 | . 4 Full Trace Events . | . . Feedback Events . | . . Feedback Blocked . | . . Robot Schematics Acquired . | . . Robots Built . | . . Authchips . | . . Time . | . . Total Robot Build Rating . | . . Part Schematics Acquired . | . . Parts Built . | . . Authchips . | . . Time . | . . Total Part Build Rating . | . . Parts Repaired . | . . Time . | . . Parts Recycled . | . . Recycled Matter . | . . Retrieved Matter . | . . Retrieved Components . | . . Parts Scanalyzed . | . . Part Schematics Acquired . | . . Parts Damaged . | . . Bothacking | -11 -10 ------------ Run | Yrd Mat Used RIF Installer . | . . Robots Hacked . | . . Non-combat . | . . Combat . | . . Robot Hacks Applied . | . . Relay Couplers Released . | . . Fabnet Peak Effective % . | . . Robots Rewired . | . . Allies Hacked . | . . Hacks Repelled . | . . Allies | -11 -10 -------- Run | Yrd Mat Total Allies . | . . Largest Group . | . . Highest-Rated Group . | . . Highest-Rated Ally . | . . Total Orders . | . . Ally Attacks . | . . Total Damage . | . . Kills . | . . Allies Corrupted . | . . Allies Melted . | . . Intel | -11 -10 ------- Run | Yrd Mat Robot Analysis Total 1 | . 1 Derelict Logs Recovered . | . . Drone Launches . | . . Drone Recoveries . | . . Exploration | -11 -10 ------------- Run | Yrd Mat Turns Passed 1127 | 108 1019 Spaces Moved 611 | 62 549 Core 2 | 2 . Treads . | . . Legs 609 | 60 549 Wheels . | . . Hover . | . . Flight . | . . Fastest Speed 50 | 50 120 Average Speed 123 | 117 124 Slowest Speed 190 | 120 190 Overloaded Moves . | . . Propulsion Burnouts . | . . Robots Hopped . | . . Cave-ins Triggered . | . . Exploration Rate (%) 38 | 3 73 Regions Visited 1 Branch Regions . Pre-discovered Areas . | . . Known Exits Taken . | . . Unknown Exits Taken 1 | 1 . Scrap Searched . | . . Spaces Dug . | . . Terrain Destroyed . | . . Melee . | . . Projectile . | . . AOE . | . . Terrain Rammed . | . . Walls Destroyed . | . . Machines Disabled . | . . Actions | -11 -10 --------- Run | Yrd Mat Total 786 | 82 704 Wait 42 | 1 41 Move 611 | 62 549 Hop . | . . Pick Up 15 | 6 9 Fast Attach 6 | 5 1 Attach 5 | 1 4 Detach . | . . Swap 1 | . 1 Drop 2 | . 2 Fire 99 | 6 93 Melee . | . . Ram . | . . Kick 5 | 1 4 Crush . | . . Escape Stasis . | . . Rewire . | . . Trap . | . . Miscellaneous . | . . Route ------- -11/Scrapyard -10/Materials (discovered 4 exits: [*Mat x2] / *Min x2) History --------- Turn | Location | Event 24 | -11/Scrapyard | Discovered new exit (range 14) 109 | -11/Scrapyard | Entered Materials 213 | -10/Materials | Discovered new exit (range 5) 306 | -10/Materials | Build established: Mutant 633 | -10/Materials | Discovered new exit (range 14) 665 | -10/Materials | Central database locked down 745 | -10/Materials | Core integrity fell below 50% 812 | -10/Materials | Identified exit to Mines 962 | -10/Materials | Discovered new exit (range 16) 1107 | -10/Materials | Core integrity fell below 20% 1128 | -10/Materials | Destroyed by G-34 Mercenary with Small Laser Last Messages --------------- 00997_ ALERT: Hostiles spotted, dispatching reinforcements to Terminal M001. 01000_ Critical hit (Destroy). 01000_ Aluminum Leg destroyed. 01001_ S-10 Pest destroyed. 01009_ Acquired Datajack. 01010_ S-10 Pest destroyed. 01028_ Acquired 17 matter. 01032_ Acquired Lgt. Assault Rifle. 01035_ Acquired 18 matter. 01039_ K-01 Serf collects debris. 01072_ Acquired Seismic Detector. 01075_ Dropped Assault Rifle. 01075_ Acquired Assault Rifle. 01086_ Lgt. Ion Engine destroyed. 01100_ G-47 Trooper destroyed. 01117_ G-34 Mercenary destroyed. 01117_ K-01 Serf collects debris. 01122_ G-34 Mercenary destroyed. 01123_ K-01 Serf collects debris. Map ----- +----------------------------------------------------+ | ???????????????# # | | ???????????????###########+### # | | ????????????????????????# ### ## | | ????????????????????????#[[!#?# ## | | ????????????????????????#[[!#?# # | | ????????????????????????#[!!#?# + | | ????????????????????????# #?# # | | ????????????????????????#! #?# ## | | ????????????????????????# ### ## | | ????????????????????????##+### # | | ?????##################### #?# # | | ?????# # ! ## #?# T # | | ?????# # ## #?# | | ?????# # """ !! ## #?# # | | ?????# # """ !! ## ######### | | ?????# + """ !! # #?????? | | ?????# # """ =#* #?????? | | ?????# # """ =+% #?????? | | ?????# # * = # #?????? | | ?????# ########### #?????? | | ?????#####+##########??? #?????? | | ????????# """??? #?????? | | ????????# "Y" +?????? | | ????????#%k #?????? | | ??????####g##### #?????? | | ??????# !k@ #? #?????? | | ??????# k T #?? #?????? | | ??????# ! * #???? ** #?????? | | ??????# !!* #????? ** #?????? | | ??????# !! #?????? ** #?????? | | ??????# #??????? #?????? | | ??????# #??????? ???????? | | ??????# ! #???????????????????? | | ??????# #???????????????????? | | ??????##########???????????????????? | | ???????????????????????????????????? | | ???????????????????????????????????? | | ???????????????????????????????????? | | ???????????????????????????????????? | | ???????????????????????????????????? | | ???????????????????????????????????? | | ???????????????????????????????????? | | ?????????????????????????????????### | | ????????????????????????????????? | | ????????????????????????????????? | | ????????????????????????????????? | | ????????????????????????????????? | | ?????????????????????????????????# | | ?????????????????????????????????# | | ??????????????????????????######## | +----------------------------------------------------+ Best States ------------- Heat Dissipation 25 Energy Generation 10 Energy Capacity 125 Matter Stores 300 Matter Capacity 300 Sight Range 16 Terrain Scan Density 10 Evasion (%) 55 Item Schematics ----------------- None Robot Schematics ------------------ None Fabricated ------------ Nothing Alien Tech Used ----------------- None Achievements -------------- None Challenges ------------ None Game ------ Seed ResetThermalCharge Manual? 0 Play Time 00:09:21 Cumulative 144.1 hours Start 2025.03.20 @ 12:29:27 End 2025.03.20 @ 12:36:34 Sessions 1 Manual Loads 0 Difficulty Rogue Special Mode None Game No. 102 Rogue 102 Adventurer 0 Explorer 0 Win Type - Total 7 Types 5/0/1/1/0/0/0/0/0 Lore% 70 Gallery% 65 Achievement% 62 Wizard Run 0 Options --------- Layout 1 ASCII 0 Keyboard 0 Movement Mouse Keybinds 0 Fullscreen 2 Font 24/Smallcaps Map View 50x35 Zoom Use 0% Tactical HUD 1 Map Filters NONE Filters NONE Steam 1 RUN: 1e85d845-f42a-4dc3-8677-c3aea4c6cc55